bitfinex-derivatives/quotes_ETHF0:USTF0_20250403
["timestamp","ask_amount","ask_price","bid_price","bid_amount"]
[1743675384316,1.10296,1813.5,1813.4,1.10298]
[1743675384618,1.10296,1813.5,1813.4,2.51908]
[1743675384921,5.57560855,1813.7,1813.6,1.10286]
[1743675385111,3.72526855,1813.7,1813.6,1.10286]
[1743675385613,4.82806855,1813.7,1813.6,1.10286]
[1743675386012,3.72526855,1813.7,1813.6,1.10286]
[1743675386207,0.00826855,1813.7,1813.5,2.51898]
[1743675386413,0.00826855,1813.7,1813.5,1.4161]
[1743675386414,4.31066,1813.6,1813.5,1.4161]
[1743675386618,8.03566,1813.6,1813.5,1.4161]
[1743675386919,3.725,1813.6,1813.5,2.51902]
[1743675387121,1.11109855,1813.7,1813.6,1.10286]
[1743675387321,1.11109855,1813.7,1813.6,1.5178]
[1743675387723,1.11109855,1813.7,1813.6,2.62066]
[1743675387917,0.00826855,1813.7,1813.6,2.62066]
[1743675389421,1.11106855,1813.7,1813.6,2.62066]
[1743675390923,0.00826855,1813.7,1813.6,2.62066]
[1743675393821,1.11106855,1813.7,1813.6,1.5178]
[1743675394021,2.62286855,1813.7,1813.6,1.5178]
[1743675394221,1.10298,1813.4,1813.3,1.80072]
[1743675395532,1.10298,1813.5,1813.4,1.10296]
[1743675395824,1.10298,1813.5,1813.4,2.49986]
[1743675398523,1.10308,1813.3,1813.1,3.8999]
[1743675398830,1.10308,1813.3,1813.2,2.53728]
[1743675400826,3.2078,1813.4,1813.3,1.10304]
[1743675401121,4.31078,1813.4,1813.3,2.53724]
[1743675401321,4.31078,1813.4,1813.3,1.4342]
[1743675401524,4.31078,1813.4,1813.3,2.53724]
[1743675405334,1.10317,1813.1,1813.0,0.77326855]
[1743675405530,1.10317,1813.1,1813.0,0.00826855]
[1743675406030,2.51267,1813.1,1813.0,2.57579855]
[1743675406227,2.51267,1813.1,1813.0,1.47256855]
[1743675407931,2.51267,1813.1,1813.0,2.57579855]
[1743675411133,5.02374,1813.2,1813.1,1.10317]
[1743675411333,8.00694,1813.2,1813.1,2.52637]
[1743675412831,8.00691,1813.2,1813.1,2.52637]
[1743675413636,8.00691,1813.2,1813.1,1.4232]
[1743675414930,1.10317,1813.1,1813.0,0.00826855]
[1743675415135,4.06947,1813.1,1813.0,0.00826855]
[1743675415935,7.76447,1813.1,1813.0,0.00826855]
[1743675416524,7.76447,1813.1,1813.0,1.41116855]
[1743675416725,7.76747,1813.1,1813.0,1.41116855]
[1743675417140,4.06947,1813.1,1813.0,1.41116855]
[1743675417431,7.76647,1813.1,1813.0,1.41116855]
[1743675417836,7.76647,1813.1,1813.0,0.00826855]
[1743675418237,1.10329,1812.9,1812.8,1.4029]
[1743675418438,4.31109,1812.9,1812.8,1.4029]
[1743675419135,4.31109,1812.9,1812.8,2.50625]
[1743675419341,5.964,1813.4,1812.8,3.9029]
[1743675419534,3.2078,1813.5,1813.4,1.10298]
[1743675420140,1.10287,1813.6,1813.5,1.10286]
[1743675420338,0.00826855,1813.7,1813.6,1.10286]
[1743675421243,0.00826855,1813.7,1813.6,3.60286]
[1743675421838,1.5366,1814.4,1813.6,7.30986]
[1743675422043,8.71956,1814.7,1813.6,7.30986]
[1743675422044,3.2078,1814.7,1814.6,1.10225]
[1743675422848,3.2078,1814.7,1814.4,1.85514]
[1743675423047,4.6665,1814.7,1814.4,0.7528]
[1743675423243,1.10225,1814.6,1814.5,0.00826855]
[1743675424144,2.56095,1814.6,1814.5,0.00826855]
[1743675425149,2.56095,1814.6,1814.5,1.53976855]
[1743675425443,6.27195,1814.6,1814.5,0.00826855]
[1743675425846,6.98345,1814.6,1814.5,0.00826855]
[1743675426544,9.48345,1814.6,1814.5,0.00826855]
[1743675426745,6.98345,1814.6,1814.5,0.00826855]
[1743675427447,6.98345,1814.6,1814.5,1.48836855]
[1743675427943,6.98345,1814.6,1814.5,0.00826855]
[1743675428149,9.48345,1814.6,1814.5,0.00826855]
[1743675428448,1.1025,1814.2,1814.1,1.10251]
[1743675428650,8.02128,1814.3,1814.2,1.10249]
[1743675428845,1.1025,1814.2,1814.1,1.4398]
[1743675429255,2.6133,1814.2,1814.1,1.4398]
[1743675430453,8.02129,1814.3,1814.1,1.4398]
[1743675430649,1.1025,1814.2,1814.1,1.4398]
[1743675431345,8.02128,1814.3,1814.2,1.1025]
[1743675432253,6.9188,1814.3,1814.2,1.1025]
[1743675433149,8.02124,1814.3,1814.1,1.4398]
[1743675433451,1.1025,1814.2,1814.1,1.4398]
[1743675433956,2.5098,1814.2,1814.1,1.4398]
[1743675434853,1.1025,1814.2,1814.1,1.4398]
[1743675435562,2.5031,1814.2,1814.1,1.4398]
[1743675435764,1.1025,1814.2,1814.1,1.4398]
[1743675436861,1.1025,1814.2,1814.1,2.54236]
[1743675437057,8.02126,1814.3,1814.2,1.1025]
[1743675437364,4.31026,1814.3,1814.2,2.5188]
[1743675438560,4.31026,1814.3,1814.2,1.4163]
[1743675440662,1.10256,1814.1,1814.0,0.00826855]
[1743675440860,8.03136,1814.1,1814.0,0.00826855]
[1743675441358,9.47066,1814.1,1814.0,0.00826855]
[1743675441857,1.10274,1813.8,1813.7,1.4934]
[1743675442062,1.10298,1813.4,1813.3,0.7416]
[1743675442259,1.10298,1813.4,1813.3,2.235]
[1743675442260,4.31078,1813.4,1813.3,2.235]
[1743675442661,4.31078,1813.4,1813.3,1.4934]
[1743675443063,5.75008,1813.4,1813.3,1.4934]
[1743675444165,4.31078,1813.4,1813.3,1.4934]
[1743675444468,3.2078,1813.4,1813.0,0.7174]
[1743675444671,3.2078,1813.4,1813.1,1.4403]
[1743675444672,1.10311,1813.2,1813.1,1.4403]
[1743675444969,8.02991,1813.2,1813.1,1.4403]
[1743675446469,9.52511,1813.2,1813.1,1.4403]
[1743675447266,1.10323,1813.0,1812.9,0.7205]
[1743675447468,1.10341,1812.7,1812.6,1.4839]
[1743675447667,4.31121,1812.7,1812.6,1.4839]
[1743675448075,4.31121,1812.7,1812.6,0.7513]
[1743675448267,1.10359,1812.4,1812.3,0.7334]
[1743675448969,1.10359,1812.4,1812.3,2.2634]
[1743675449370,1.10384,1812.0,1811.9,1.10386]
[1743675449571,1.10384,1812.0,1811.9,3.39506]
[1743675450377,1.10382,1812.1,1811.9,3.39506]
[1743675450574,1.10384,1812.0,1811.9,3.39506]
[1743675450777,1.10384,1812.0,1811.9,2.2912]
[1743675450970,1.1038,1812.1,1812.0,1.10382]
[1743675451172,1.1038,1812.1,1812.0,2.60742]
[1743675452377,1.10371,1812.2,1812.0,2.60742]
[1743675452578,1.10378,1812.1,1812.0,2.60742]
[1743675452776,3.727,1812.3,1812.1,1.10376]
[1743675453077,8.03341,1812.4,1812.3,1.10365]
[1743675453276,0.00826855,1812.5,1812.4,1.10359]
[1743675453878,0.00826855,1812.5,1812.4,5.05559]
[1743675456171,0.00826855,1812.5,1812.4,8.26339]
[1743675456779,4.82413,1813.2,1813.1,1.10317]
[1743675457081,4.31089,1813.3,1813.2,1.10311]
[1743675457681,3.2078,1813.3,1813.2,1.10311]
[1743675457878,4.31076,1813.5,1813.4,1.10298]
[1743675458077,3.2078,1813.5,1813.4,1.10298]
[1743675458976,3.2078,1813.5,1813.4,1.81448]
[1743675460779,3.21606855,1813.6,1813.5,1.10292]
[1743675460979,0.00826855,1813.6,1813.5,2.56212]
[1743675461584,1.11112855,1813.6,1813.5,2.56212]
[1743675462183,0.00826855,1813.6,1813.5,2.56212]
[1743675464584,1.11112855,1813.6,1813.5,2.56212]
[1743675464983,1.10298,1813.4,1813.3,0.00826855]
[1743675465184,4.31078,1813.4,1813.3,1.47816855]
[1743675465489,4.31078,1813.4,1813.3,2.58120855]
[1743675466087,4.31078,1813.4,1813.3,0.00826855]
[1743675466283,5.75878,1813.4,1813.3,0.00826855]
[1743675468985,4.31078,1813.4,1813.3,1.11130855]
[1743675470589,4.31078,1813.4,1813.3,0.00826855]
[1743675470887,4.31078,1813.4,1813.3,2.59360855]
[1743675471289,5.79108,1813.4,1813.3,2.59360855]
[1743675472094,5.79108,1813.4,1813.3,1.49056855]
[1743675472888,5.79108,1813.4,1813.3,0.00826855]
[1743675473190,8.29108,1813.4,1813.3,0.00826855]
[1743675473397,1.10317,1813.1,1813.0,1.4551]
[1743675473682,4.31097,1813.1,1813.0,1.4551]
[1743675474091,5.79127,1813.1,1813.0,1.4551]
[1743675474281,4.31097,1813.1,1813.0,2.55833]
[1743675475190,3.2078,1813.1,1813.0,2.55833]
[1743675475587,4.31097,1813.1,1813.0,2.55833]
[1743675476392,5.96582,1813.1,1812.6,7.46405]
[1743675476684,5.96582,1813.1,1812.8,1.10332]
[1743675476685,3.2078,1812.9,1812.8,1.10332]
[1743675476890,4.31109,1812.9,1812.8,1.10332]
[1743675477587,3.2078,1812.9,1812.8,1.10332]
[1743675477784,1.10335,1812.8,1812.7,1.535]
[1743675477990,1.10355,1812.5,1812.4,1.10353]
[1743675478189,7.40096,1812.7,1812.2,3.2078]
[1743675478493,1.1036,1812.4,1812.3,1.1036]
[1743675479292,1.10366,1812.3,1812.2,1.10368]
[1743675480384,1.10371,1812.2,1812.1,2.55635]
[1743675480590,1.10371,1812.2,1812.1,2.55638]
[1743675481190,1.10371,1812.2,1812.1,1.4526]
[1743675481590,1.10371,1812.2,1812.1,2.55638]
[1743675482187,3.2078,1812.3,1812.2,1.10371]
[1743675482488,3.2078,1812.5,1812.2,1.4167]
[1743675482696,3.2078,1812.5,1812.2,2.52037]
[1743675482899,1.10365,1812.3,1812.2,1.4167]
[1743675483187,3.2078,1812.5,1812.3,1.10363]
[1743675483392,4.31138,1812.5,1812.4,1.3975]
[1743675484291,0.00826855,1812.6,1812.5,1.10353]
[1743675485104,0.00826855,1812.6,1812.5,3.20203]
[1743675487599,1.11173855,1812.6,1812.5,3.20203]
[1743675487894,0.00826855,1812.6,1812.5,3.20203]
[1743675492504,1.11173855,1812.6,1812.5,3.20203]
[1743675492699,4.31953855,1812.6,1812.5,1.3975]
[1743675493299,4.31953855,1812.6,1812.5,2.50103]
[1743675493498,4.31953855,1812.6,1812.5,1.3975]
[1743675494603,1.10371,1812.2,1812.1,0.6923]
[1743675495000,1.10379,1812.1,1812.0,1.10378]
[1743675495304,1.10384,1812.0,1811.9,0.7017]
[1743675495605,1.10393,1811.9,1811.8,1.10394]
[1743675495904,1.10396,1811.8,1811.7,0.7506]
[1743675496605,1.10396,1811.8,1811.7,1.85462]
[1743675496901,4.31176,1811.9,1811.7,0.7506]
[1743675497099,3.2078,1811.9,1811.7,0.7506]
[1743675497297,4.31174,1811.9,1811.8,1.4644]
[1743675497505,5.77464,1811.9,1811.8,1.4644]
[1743675497810,3.2078,1811.9,1811.8,2.56836]
[1743675498905,4.3117,1811.9,1811.8,2.56836]
[1743675499100,4.3117,1811.9,1811.8,1.4644]
[1743675499809,4.3117,1811.9,1811.8,2.56836]
[1743675500104,4.3117,1811.9,1811.8,1.4644]
[1743675500505,5.786,1811.9,1811.8,1.4644]
[1743675500705,5.786,1811.9,1811.8,2.56836]
[1743675501099,5.786,1811.9,1811.8,1.4644]
[1743675501499,3.2078,1811.9,1811.8,2.56836]
[1743675502801,4.80386,1812.0,1811.9,1.1039]
[1743675503007,4.80386,1812.0,1811.9,2.6414]
[1743675503209,1.10386,1812.0,1811.9,2.6414]
[1743675503510,1.10384,1812.0,1811.9,2.64135]
[1743675504510,5.55712,1812.1,1812.0,1.10384]
[1743675504712,5.55712,1812.1,1812.0,2.50474]
[1743675504904,1.10394,1811.9,1811.8,1.10394]
[1743675505510,2.61914,1811.9,1811.8,1.10394]
[1743675505711,3.2078,1812.0,1811.9,1.1039]
[1743675505904,3.2078,1812.0,1811.7,6.92085]
[1743675505905,3.699,1812.1,1812.0,1.10384]
[1743675506111,3.699,1812.1,1811.8,5.51963]
[1743675506112,3.2078,1812.2,1812.1,1.10378]
[1743675507114,8.02257855,1812.6,1812.3,1.10365]
[1743675507419,8.02257855,1812.6,1812.5,1.10353]
[1743675507719,8.02157855,1812.6,1812.5,1.10353]
[1743675508106,1.10359,1812.4,1812.3,1.10364]
[1743675508306,1.10365,1812.4,1812.3,1.10365]
[1743675508715,2.62648,1812.5,1812.4,1.10359]
[1743675509511,1.10365,1812.3,1812.2,1.492]
[1743675509819,1.10377,1812.2,1812.1,1.10377]
[1743675510011,2.62667,1812.2,1812.1,1.10377]
[1743675510318,1.10378,1812.1,1812.0,3.3107]
[1743675510519,2.62666,1812.2,1812.1,1.10378]
[1743675510922,4.80469,1812.3,1812.2,1.10371]
[1743675511418,3.701,1812.3,1812.2,1.10371]
[1743675511611,4.80465,1812.3,1812.2,1.10371]
[1743675511811,1.10373,1812.2,1812.1,1.10373]
[1743675512219,9.5336,1812.3,1812.2,1.10371]
[1743675513621,1.10372,1812.2,1812.1,1.10372]
[1743675514322,9.5336,1812.3,1812.2,1.10371]
[1743675516110,1.10374,1812.2,1812.1,1.10373]
[1743675516316,2.56094,1812.2,1812.1,1.10373]
[1743675517311,8.0125,1812.3,1812.2,1.10371]
[1743675518122,4.8047,1812.3,1812.2,1.10371]
[1743675518423,6.9088,1812.3,1812.2,1.10371]
[1743675518720,3.2078,1812.3,1812.2,1.10371]
[1743675519020,1.3996,1812.5,1812.0,7.72585]
[1743675519021,0.00826855,1812.6,1812.3,2.75901]
[1743675519220,3.70026855,1812.6,1812.5,1.10353]
[1743675519415,3.70026855,1812.6,1812.5,2.51373]
[1743675519823,0.00826855,1812.6,1812.5,2.51373]
[1743675521121,0.00826855,1812.6,1812.5,5.01373]
[1743675521425,1.10303,1813.4,1813.2,1.10306]
[1743675521621,1.10303,1813.4,1813.3,1.4036]
[1743675521828,2.62483,1813.4,1813.3,1.4036]
[1743675522124,1.10315,1813.2,1813.0,1.1032]
[1743675522424,1.10315,1813.2,1813.0,2.5068]
[1743675522626,1.10315,1813.2,1813.0,1.4036]
[1743675522924,1.10317,1813.1,1813.0,1.4036]
[1743675523234,4.31097,1813.1,1813.0,1.4036]
[1743675523725,5.73637,1813.1,1813.0,1.4036]
[1743675524829,1.10323,1813.0,1812.9,0.00826855]
[1743675525024,2.52863,1813.0,1812.9,0.00826855]
[1743675525530,2.52863,1813.0,1812.9,1.53156855]
[1743675526223,4.31101,1813.1,1813.0,1.10323]
[1743675526424,1.10323,1813.0,1812.9,2.63483855]
[1743675527930,1.10323,1813.0,1812.9,1.53156855]
[1743675528224,2.51953,1813.0,1812.9,1.53156855]
[1743675528418,3.2078,1813.1,1812.9,2.63481855]
[1743675528625,1.10323,1813.0,1812.9,1.53156855]
[1743675528930,2.51953,1813.0,1812.9,2.63485855]
[1743675529321,2.51953,1813.0,1812.9,1.53156855]
[1743675529623,2.51953,1813.0,1812.9,0.00826855]
[1743675530422,2.51953,1813.0,1812.9,1.11155855]
[1743675530625,2.51953,1813.0,1812.9,0.00826855]
[1743675530824,2.51953,1813.0,1812.9,1.45686855]
[1743675531224,2.51953,1813.0,1812.9,2.56015855]
[1743675532423,1.10323,1813.0,1812.9,2.56015855]
[1743675532931,1.10323,1813.0,1812.9,1.45686855]
[1743675534231,1.10323,1813.0,1812.9,2.56015855]
[1743675534934,2.62173,1813.0,1812.9,0.00826855]
[1743675535134,5.12173,1813.0,1812.9,0.00826855]
[1743675538430,1.10353,1812.5,1812.4,1.82619]
[1743675538730,1.10347,1812.6,1812.5,1.10347]
[1743675539729,1.10347,1812.6,1812.5,1.4836]
[1743675540322,1.10347,1812.6,1812.5,2.58713]
[1743675540938,7.98624,1812.7,1812.6,1.10347]
[1743675541536,1.10347,1812.6,1812.5,2.5871]
[1743675543028,1.10347,1812.6,1812.5,1.4836]
[1743675543535,1.10347,1812.6,1812.5,2.58713]
[1743675543838,1.10347,1812.6,1812.5,1.4836]
[1743675544337,2.59927,1812.6,1812.5,1.4836]
[1743675544634,1.10347,1812.6,1812.5,1.4836]
[1743675545632,7.98626,1812.7,1812.6,1.10347]
[1743675545831,1.10347,1812.6,1812.5,2.58709]
[1743675546738,7.98625,1812.7,1812.5,2.58709]
[1743675546934,7.98625,1812.7,1812.6,1.4462]
[1743675547738,7.98625,1812.7,1812.6,2.54967]
[1743675548639,7.98625,1812.7,1812.6,1.4462]
[1743675548838,1.10365,1812.3,1812.2,4.3115]
[1743675549141,4.77761,1812.4,1812.3,1.10365]
[1743675549342,4.77761,1812.4,1812.3,2.52215]
[1743675549536,3.674,1812.4,1812.3,2.52215]
[1743675550137,3.2078,1812.8,1812.3,2.1785]
[1743675550345,3.2078,1812.8,1812.7,1.10341]
[1743675550739,3.2078,1813.0,1812.7,2.75848]
[1743675550935,1.10329,1812.9,1812.8,2.55452]
[1743675551137,3.2078,1813.0,1812.9,1.10329]
[1743675551344,3.2078,1813.0,1812.9,2.55449]
[1743675551641,4.31103,1813.0,1812.9,1.4512]
[1743675551838,4.31103,1813.0,1812.9,2.55449]
[1743675552037,3.2078,1813.0,1812.9,2.55449]
[1743675552439,4.31103,1813.0,1812.9,2.55449]
[1743675552738,4.31103,1813.0,1812.9,1.4512]
[1743675552935,4.31103,1813.0,1812.9,2.55449]
[1743675553740,3.2078,1813.0,1812.9,2.55449]
[1743675554248,4.31103,1813.0,1812.9,2.55449]
[1743675557444,4.31103,1813.0,1812.9,1.4512]
[1743675557751,1.10335,1812.8,1812.7,1.86337]
[1743675557942,1.10335,1812.8,1812.7,2.53997]
[1743675559846,1.10335,1812.8,1812.7,1.4366]
[1743675561043,2.59085,1812.8,1812.7,1.4366]
[1743675561746,3.34315,1812.8,1812.7,1.4366]
[1743675562449,1.10353,1812.5,1812.4,0.727]
[1743675563739,7.98732,1812.6,1812.5,1.10353]
[1743675563950,7.98732,1812.6,1812.5,2.48763]
[1743675564159,7.98732,1812.6,1812.5,1.3841]
[1743675564447,9.41892,1812.6,1812.5,1.3841]
[1743675565342,7.98732,1812.6,1812.5,1.3841]
[1743675566745,3.2078,1812.6,1812.5,2.48763]
[1743675566944,1.10347,1812.6,1812.5,2.48763]
[1743675568853,4.31125,1812.7,1812.6,1.10347]
[1743675569053,4.31125,1812.7,1812.6,3.20137]
[1743675569739,1.10345,1812.7,1812.6,3.20137]
[1743675570646,3.2078,1812.9,1812.6,2.0979]
[1743675570942,4.31109,1812.9,1812.8,1.10335]
[1743675571141,1.10335,1812.8,1812.7,2.49347]
[1743675571348,1.10335,1812.8,1812.7,1.3901]
[1743675571550,1.10335,1812.8,1812.7,2.49351]
[1743675571750,4.31109,1812.9,1812.8,1.10335]
[1743675571954,4.31109,1812.9,1812.8,3.30605]
[1743675573446,4.31109,1812.9,1812.8,1.456]
[1743675573648,5.74849,1812.9,1812.8,1.456]
[1743675573855,1.10338,1812.8,1812.7,1.10341]
[1743675574054,1.10338,1812.8,1812.7,2.55941]
[1743675574251,4.6452,1812.9,1812.1,3.2078]
[1743675574449,1.10354,1812.5,1812.4,1.10358]
[1743675574645,1.10365,1812.3,1812.2,2.6064]
[1743675574850,1.10363,1812.4,1812.3,1.10364]
[1743675575051,1.10383,1812.1,1811.9,3.2078]
[1743675575251,1.10382,1812.1,1811.9,1.10384]
[1743675575447,6.8928,1812.2,1811.8,2.7599]
[1743675575448,8.00482855,1812.2,1811.8,2.7599]
[1743675575647,8.00482855,1812.2,1812.1,1.10378]
[1743675576453,8.00482855,1812.2,1812.0,1.10379]
[1743675576655,8.00482855,1812.2,1812.1,1.485]
[1743675576856,8.00482855,1812.2,1812.1,2.58878]
[1743675579459,0.00826855,1812.2,1812.1,2.58878]
[1743675581965,1.11197855,1812.2,1812.1,1.485]
[1743675582172,1.11197855,1812.2,1812.1,2.58878]
[1743675582373,1.11197855,1812.2,1812.1,1.485]
[1743675583572,1.11197855,1812.2,1812.1,2.58878]
[1743675587978,0.00826855,1812.2,1812.1,2.58878]
[1743675588373,1.11197855,1812.2,1812.1,2.58878]
[1743675588676,0.00826855,1812.2,1812.1,2.58878]
[1743675588875,1.11197855,1812.2,1812.1,2.58878]
[1743675589072,0.00826855,1812.2,1812.1,2.58878]
[1743675589678,3.2078,1812.6,1812.1,9.50383]
[1743675589873,3.2078,1812.6,1812.3,2.759]
[1743675590080,1.10356,1812.5,1812.4,1.4582]
[1743675590371,1.10365,1812.3,1812.2,1.4638]
[1743675590570,4.31145,1812.3,1812.2,1.4582]
[1743675590775,1.10384,1812.0,1811.9,1.4638]
[1743675591575,8.69482,1812.1,1812.0,1.10384]
[1743675592074,8.69482,1812.1,1812.0,2.56204]
[1743675592774,8.69482,1812.1,1812.0,1.4582]
[1743675592975,10.15642,1812.1,1812.0,1.4582]
[1743675593174,1.1039,1811.9,1811.8,1.11220855]
[1743675594379,1.1039,1811.9,1811.8,2.51580855]
[1743675596377,1.10386,1812.0,1811.9,1.10386]
[1743675596580,1.1039,1811.9,1811.8,0.00826855]
[1743675597276,4.3117,1811.9,1811.8,1.40996855]
[1743675597485,4.3117,1811.9,1811.8,0.00826855]
[1743675598380,4.3117,1811.9,1811.8,1.40996855]
[1743675599382,4.3117,1811.9,1811.8,2.51392855]
[1743675599880,4.3117,1811.9,1811.8,1.40996855]
[1743675600483,1.1039,1811.9,1811.8,2.51392855]
[1743675600889,4.3117,1811.9,1811.8,1.40996855]
[1743675601091,4.3117,1811.9,1811.8,0.00826855]
[1743675602085,4.3117,1811.9,1811.8,1.11222855]
[1743675602292,3.2078,1811.9,1811.8,2.53232855]
[1743675602585,0.7092,1812.1,1812.0,1.10384]
[1743675602586,4.77378,1812.1,1812.0,1.10384]
[1743675602789,1.10384,1812.0,1811.9,2.1133]
[1743675602983,4.31164,1812.0,1811.9,1.4201]
[1743675603182,3.2078,1812.0,1811.9,2.524]
[1743675603383,4.31164,1812.0,1811.9,2.524]
[1743675603779,4.31164,1812.0,1811.9,1.4201]
[1743675603990,5.78524,1812.0,1811.9,1.4201]
[1743675604788,5.78524,1812.0,1811.9,2.524]
[1743675604995,4.31164,1812.0,1811.9,2.524]
[1743675605994,4.31164,1812.0,1811.9,1.4201]
[1743675606385,1.1039,1811.9,1811.8,0.00826855]
[1743675606580,2.4897,1811.9,1811.8,0.00826855]
[1743675606786,3.2384,1811.9,1811.8,0.00826855]
[1743675606987,1.1039,1811.9,1811.8,0.00826855]
[1743675607189,1.1039,1811.9,1811.8,1.44256855]
[1743675607498,2.4897,1811.9,1811.8,0.00826855]
[1743675608095,4.7869,1811.9,1811.8,0.00826855]
[1743675608295,4.7869,1811.9,1811.8,1.11222855]
[1743675608894,3.683,1811.9,1811.8,1.11222855]
[1743675609496,4.31168,1812.0,1811.9,1.1039]
[1743675609686,4.31168,1812.0,1811.9,2.5103]
[1743675610593,3.2078,1812.0,1811.9,2.5103]
[1743675611393,3.2078,1812.2,1812.1,1.10378]
[1743675611593,3.2078,1812.2,1812.1,4.16338]
[1743675611995,4.31151,1812.2,1812.1,4.16338]
[1743675612497,3.2078,1812.2,1812.1,4.16338]
[1743675612696,4.31151,1812.2,1812.1,3.0596]
[1743675613793,4.31151,1812.2,1812.1,4.16338]
[1743675614000,4.31151,1812.2,1812.1,3.0596]
[1743675614498,4.31151,1812.2,1812.1,4.16338]
[1743675614694,3.2078,1812.2,1812.1,4.16338]
[1743675615301,4.31151,1812.2,1812.1,4.16338]
[1743675616497,4.31151,1812.2,1812.1,3.0596]
[1743675616694,4.31151,1812.2,1812.1,2.2934]
[1743675617796,1.10384,1812.0,1811.9,0.7241]
[1743675618093,4.31164,1812.0,1811.9,2.2046]
[1743675618293,3.2078,1812.0,1811.9,3.3085]
[1743675618497,7.01893,1812.1,1812.0,1.10384]
[1743675618697,1.10384,1812.0,1811.9,1.82795]
[1743675619599,5.49219,1812.1,1812.0,1.10384]
[1743675619805,3.683,1812.1,1812.0,1.10384]
[1743675620005,4.78678,1812.1,1812.0,1.10384]
[1743675621307,1.1039,1811.9,1811.8,1.80548855]
[1743675622001,1.1039,1811.9,1811.8,0.70156855]
[1743675622805,4.31168,1812.0,1811.9,1.1039]
[1743675623000,3.2078,1812.0,1811.9,1.1039]
[1743675623196,1.10386,1812.0,1811.9,1.10384]
[1743675624705,3.683,1812.1,1812.0,1.10384]
[1743675626406,4.78678,1812.1,1812.0,1.10384]
[1743675627907,1.1039,1811.9,1811.8,0.70156855]
[1743675628203,4.3117,1811.9,1811.8,0.70156855]
[1743675629195,4.3117,1811.9,1811.8,0.00826855]
[1743675629698,6.6063,1811.9,1811.8,0.00826855]
[1743675630409,5.0746,1811.9,1811.8,1.11222855]
[1743675631300,5.0746,1811.9,1811.8,0.00826855]
[1743675631500,9.1063,1811.9,1811.8,1e-08]
[1743675633407,15.0703,1811.9,1811.8,1e-08]
[1743675633709,1.10426,1811.3,1811.2,1.4786]
[1743675633910,7.98506,1811.3,1811.2,1.4786]
[1743675634303,1.10438,1811.1,1811.0,1.4178]
[1743675634606,4.31218,1811.1,1811.0,2.1798]
[1743675636410,4.31218,1811.1,1810.7,0.7166]
[1743675636411,1.10457,1810.8,1810.7,0.7166]
[1743675636607,1.10468,1810.7,1810.6,1.10466]
[1743675636912,1.10475,1810.5,1810.4,1.4658]
[1743675638312,1.10481,1810.4,1810.3,1.4269]
[1743675638607,1.10481,1810.4,1810.3,1.10487]
[1743675638802,1.10481,1810.4,1810.2,1.10488]
[1743675639006,2.76131,1810.9,1810.2,5.97014]
[1743675639205,1.10481,1810.4,1810.3,1.10484]
[1743675639506,1.10481,1810.4,1810.1,2.55419]
[1743675639507,3.2078,1810.4,1810.1,2.55419]
[1743675639704,1.10491,1810.3,1810.1,2.55419]
[1743675639904,1.10493,1810.2,1810.1,1.4492]
[1743675640412,2.76249,1810.1,1809.6,8.6422992]
[1743675640710,4.31304,1809.7,1809.6,8.6422992]
[1743675640902,8.06604,1809.7,1809.6,8.6422992]
[1743675641108,18.18793,1809.7,1809.4,15.02602841]
[1743675641409,4.31316,1809.5,1809.4,6.2992989]
[1743675641914,4.91332,1809.6,1809.4,1.10542]
[1743675642109,4.91332,1809.6,1809.4,1.1054]
[1743675642305,3.2078,1809.5,1809.2,1.4227]
[1743675642510,3.2078,1809.5,1808.9,2.76427]
[1743675642705,1.10546,1809.4,1808.8,0.7238]
[1743675642913,4.31331,1809.3,1809.1,1.10558]
[1743675643218,1.10558,1809.2,1808.8,0.7238]
[1743675643419,4.31331,1809.3,1809.0,1.10567]
[1743675643806,4.31331,1809.3,1809.1,1.10559]
[1743675644013,4.31307,1809.7,1809.4,1.10542]
[1743675644217,3.2078,1809.7,1809.5,1.8211]
[1743675644612,4.91621,1809.8,1809.5,1.8211]
[1743675644812,1.10524,1809.7,1809.5,1.8211]
[1743675645013,4.91622,1809.8,1809.5,1.8211]
[1743675645716,1.10526,1809.7,1809.5,1.8211]
[1743675646220,1.10526,1809.7,1809.5,0.7158]
[1743675646618,1.10526,1809.7,1809.5,1.82115]
[1743675647215,3.811,1809.8,1809.6,1.1053]
[1743675647617,3.811,1809.8,1809.5,0.7158]
[1743675647817,3.811,1809.8,1809.6,1.10526]
[1743675648120,1.10514,1809.9,1809.6,1.10526]
[1743675648517,14.09013855,1810.0,1809.6,3.2078]
[1743675648723,12.98506855,1810.0,1809.6,3.2078]
[1743675649023,1.10522,1809.8,1809.5,1.82111]
[1743675649230,15.74772855,1810.0,1809.5,0.7158]
[1743675649425,1.1053,1809.6,1809.5,0.7158]
[1743675649621,4.31309,1809.7,1809.5,0.7158]
[1743675649929,4.31295,1809.9,1809.7,1.10521]
[1743675650428,1.10518,1809.8,1809.5,0.7158]
[1743675650726,3.2078,1809.9,1809.6,1.1053]
[1743675650920,1.10522,1809.8,1809.6,1.1053]
[1743675651120,1.10522,1809.8,1809.7,1.10524]
[1743675651527,3.2078,1809.9,1809.8,1.10518]
[1743675651729,0.00826855,1810.0,1809.9,1.10512]
[1743675651929,0.00826855,1810.0,1809.8,1.82304]
[1743675652426,1.11336855,1810.0,1809.9,1.10512]
[1743675652837,1.11336855,1810.0,1809.8,1.82303]
[1743675653037,0.00826855,1810.0,1809.8,0.7179]
[1743675653230,4.90312,1809.9,1809.6,1.1053]
[1743675653431,3.798,1809.9,1809.7,1.10524]
[1743675653633,1.10524,1809.7,1809.6,1.10525]